bitfinex/quotes_ETHUSD_20240821
["timestamp","ask_amount","ask_price","bid_price","bid_amount"]
[1724212068266,4.1498,2596.3,2595.6,1.671]
[1724212068476,0.04439638,2595.9,2595.6,1.671]
[1724212068668,4.1498,2596.3,2595.7,0.55]
[1724212068867,0.04439638,2595.8,2595.7,0.55]
[1724212069104,4.1498,2596.3,2595.7,0.55]
[1724212069454,0.04392311,2596.2,2595.7,0.55]
[1724212069654,4.1498,2596.3,2595.7,0.55]
[1724212069850,0.04392311,2596.1,2595.7,0.8168557]
[1724212070103,4.1498,2596.3,2595.7,0.55]
[1724212070509,0.04392311,2596.2,2595.7,0.55]
[1724212070876,4.1498,2596.3,2595.7,0.55]
[1724212071105,0.04392311,2596.1,2595.7,0.55]
[1724212071265,4.1498,2596.3,2595.7,0.55]
[1724212071617,0.04392311,2596.0,2595.7,0.55]
[1724212071762,4.1498,2596.3,2595.7,0.8168557]
[1724212072073,0.04392311,2596.2,2595.7,0.8168557]
[1724212072276,4.1498,2596.3,2595.7,0.8168557]
[1724212072461,0.04392311,2596.1,2595.7,0.8168557]
[1724212072664,4.1498,2596.3,2595.7,0.8168557]
[1724212072895,0.04392311,2596.0,2595.7,0.8168557]
[1724212073113,4.1498,2596.3,2595.7,0.8168557]
[1724212073607,0.04392311,2596.2,2595.7,0.8168557]
[1724212074008,4.1498,2596.3,2595.7,0.8168557]
[1724212074161,0.04296664,2596.1,2595.7,0.8168557]
[1724212074578,4.1498,2596.3,2595.7,0.8168557]
[1724212074963,0.04296664,2596.2,2595.7,0.8168557]
[1724212075408,4.1498,2596.3,2595.7,0.8168557]
[1724212076106,0.04296664,2596.2,2595.7,0.8168557]
[1724212076466,4.1498,2596.3,2595.7,0.8168557]
[1724212076664,0.04296664,2596.1,2595.7,0.8168557]
[1724212076900,2.4788,2596.3,2595.7,0.8168557]
[1724212077098,0.04296664,2596.0,2595.7,0.8168557]
[1724212077279,2.4788,2596.3,2595.7,0.8168557]
[1724212077458,0.04296664,2595.9,2595.7,0.8168557]
[1724212077669,2.4788,2596.3,2595.7,0.8168557]
[1724212077895,0.04296664,2595.8,2595.7,0.8168557]
[1724212078296,2.4788,2596.3,2595.7,0.8168557]
[1724212078498,0.04296664,2595.8,2595.7,0.8168557]
[1724212078704,2.4788,2596.3,2595.7,0.8168557]
[1724212078909,0.04296664,2595.8,2595.7,0.8168557]
[1724212079213,2.4788,2596.3,2595.7,0.8168557]
[1724212079424,0.04296664,2595.8,2595.7,0.8168557]
[1724212079721,2.4788,2596.3,2595.7,0.8168557]
[1724212079916,0.04296664,2595.8,2595.7,0.8168557]
[1724212080087,4.1498,2596.3,2595.7,0.8168557]
[1724212080292,0.04296664,2595.8,2595.7,0.55]
[1724212080616,2.4531,2595.9,2595.6,0.55]
[1724212080806,0.04296664,2595.8,2595.6,0.55]
[1724212081678,0.04296664,2595.8,2595.4,0.55]
[1724212081876,2.4531,2595.9,2595.4,0.55]
[1724212082112,0.04296664,2595.7,2595.4,3.55]
[1724212082311,2.4531,2595.9,2595.4,1.3721]
[1724212082513,2.4531,2595.9,2594.5,3.18452432]
[1724212082514,2.329,2595.8,2595.0,1.671]
[1724212082721,0.07703148,2595.7,2595.0,1.671]
[1724212082887,2.37196664,2595.8,2595.0,1.671]
[1724212083092,0.04277527,2595.6,2595.1,0.41191]
[1724212083414,2.329,2595.8,2595.1,0.41191]
[1724212083614,0.04277527,2595.5,2595.1,0.41191]
[1724212083816,0.04277527,2595.5,2595.2,0.55]
[1724212084026,0.04277527,2595.4,2595.2,0.55]
[1724212084328,2.329,2595.8,2595.2,0.55]
[1724212084523,0.04277527,2595.3,2595.2,0.55]
[1724212084692,2.329,2595.8,2595.1,0.55]
[1724212084894,0.04277527,2595.3,2595.1,0.55]
[1724212085121,2.329,2595.8,2595.1,0.55]
[1724212085291,0.04219098,2595.2,2595.1,0.55]
[1724212085473,1.671,2595.9,2594.7,3.0]
[1724212085474,2.329,2595.4,2595.0,0.55]
[1724212085679,0.04219098,2595.2,2594.8,0.55]
[1724212085881,2.329,2595.4,2594.8,0.55]
[1724212086291,0.04218091,2595.3,2594.8,0.55]
[1724212086934,2.4055,2595.2,2594.8,0.55]
[1724212087579,0.04218091,2595.1,2594.8,0.55]
[1724212088178,0.04218091,2595.1,2594.8,1.0721]
[1724212089812,0.04218091,2595.1,2594.9,1.671]
[1724212090146,1.671,2595.6,2595.0,0.55]
[1724212090147,2.2938,2595.6,2595.0,0.55]
[1724212092295,2.2938,2595.6,2595.1,1.671]
[1724212092493,2.2938,2596.0,2595.3,1.671]
[1724212092944,2.2938,2596.0,2595.4,0.55]
[1724212095046,2.2938,2595.8,2595.4,0.55]
[1724212095212,2.2938,2595.8,2595.2,0.55]
[1724212095412,2.2938,2595.8,2595.3,0.2221]
[1724212095762,2.2938,2595.8,2595.4,0.55]
[1724212096552,0.04195927,2595.7,2595.4,0.55]
[1724212096952,2.2938,2595.8,2595.4,0.55]
[1724212097159,0.04195927,2595.6,2595.4,0.55]
[1724212097511,2.2938,2595.8,2595.4,0.55]
[1724212097772,0.04195927,2595.5,2595.4,0.55]
[1724212097933,2.2938,2595.8,2595.4,0.55]
[1724212098136,0.04195927,2595.5,2595.4,0.55]
[1724212098338,2.2938,2595.8,2595.4,0.55]
[1724212098651,0.04195927,2595.5,2595.4,0.55]
[1724212098968,2.2938,2595.8,2595.4,0.55]
[1724212099140,0.04195927,2595.5,2595.4,0.55]
[1724212099337,2.2938,2595.8,2595.2,0.55]
[1724212099569,0.04195927,2595.5,2595.2,1.0721]
[1724212099773,2.2938,2595.8,2595.2,1.0721]
[1724212099979,2.2938,2595.8,2595.2,0.55]
[1724212100492,0.04195927,2595.7,2595.1,0.55]
[1724212100775,2.2938,2595.8,2595.1,0.55]
[1724212101161,0.04195927,2595.7,2595.1,0.55]
[1724212101778,2.2938,2595.8,2595.1,0.55]
[1724212101986,2.2938,2595.8,2595.2,0.5221]
[1724212102162,0.04195927,2595.7,2595.3,0.55]
[1724212102692,2.2938,2595.8,2595.3,0.55]
[1724212102836,0.04195927,2595.6,2595.3,0.55]
[1724212103238,0.04195927,2595.5,2595.3,0.55]
[1724212103535,2.2938,2595.8,2595.3,0.55]
[1724212103735,0.04195927,2595.4,2595.3,0.55]
[1724212103936,4.0488,2595.7,2595.1,0.55]
[1724212104144,2.3778,2595.6,2595.1,0.55]
[1724212104694,2.3778,2595.6,2595.0,0.55]
[1724212108457,0.04195927,2595.5,2595.0,0.55]
[1724212110005,0.04195927,2595.5,2594.9,2.221]
[1724212110308,0.04195927,2595.5,2595.0,0.44141]
[1724212110442,0.04195927,2595.5,2595.1,0.55]
[1724212112742,0.04195927,2595.5,2595.1,4.6836]
[1724212112946,2.3772,2595.8,2595.1,4.6836]
[1724212113195,0.04079824,2595.7,2595.1,4.6836]
[1724212113400,0.04079824,2595.7,2595.2,0.46836]
[1724212113605,2.3772,2595.8,2595.3,0.55]
[1724212113891,0.04013538,2595.6,2595.3,0.55]
[1724212114046,2.3772,2595.8,2595.3,0.55]
[1724212114499,0.04006484,2595.7,2595.3,0.55]
[1724212114993,2.3772,2595.8,2595.3,0.55]
[1724212115344,0.04006484,2595.7,2595.3,0.55]
[1724212115587,2.3772,2595.8,2595.3,0.55]
[1724212115996,0.04006484,2595.7,2595.3,0.55]
[1724212116463,2.3772,2595.8,2595.3,0.55]
[1724212116667,0.04006484,2595.7,2595.3,0.55]
[1724212116861,2.3772,2595.8,2595.3,0.55]
[1724212117194,0.04006484,2595.7,2595.3,0.55]
[1724212117494,2.3772,2595.8,2595.3,0.55]
[1724212117699,2.82233395,2595.8,2595.3,0.55]
[1724212117995,2.3712,2595.6,2595.3,0.55]
[1724212118652,0.04006484,2595.5,2595.3,0.55]
[1724212120129,2.3712,2595.4,2594.5,23.50569346]
[1724212120290,2.77942648,2595.4,2594.5,13.66717355]
[1724212120451,2.77942648,2595.4,2594.5,11.23569346]
[1724212120646,0.07703148,2595.3,2594.5,11.23569346]
[1724212120879,2.3712,2595.1,2594.5,8.97849346]
[1724212121455,2.3712,2595.1,2594.6,0.55]
[1724212121656,2.3712,2595.1,2594.6,1.50284935]
[1724212121998,2.3712,2595.1,2594.6,0.55]
[1724212124186,4.11923148,2595.1,2594.6,0.55]
[1724212124386,2.4418,2595.0,2594.6,0.55]
[1724212124599,2.51883148,2595.0,2594.6,0.55]
[1724212125626,2.4418,2595.0,2594.6,0.55]
[1724212126412,2.4418,2595.0,2594.6,1.42962645]
[1724212128243,2.4418,2595.0,2594.6,0.55]
[1724212137245,2.4418,2595.0,2594.5,7.30749346]
[1724212137441,2.3973,2594.8,2594.5,7.30749346]
[1724212137647,2.3973,2594.8,2594.2,12.27]
[1724212138359,2.3973,2594.6,2593.9,3.9937]
[1724212138555,0.03916728,2594.5,2594.0,3.3]
[1724212138731,2.3973,2594.6,2594.1,0.55]
[1724212138926,2.3973,2594.6,2594.2,0.385]
[1724212139130,2.3973,2594.9,2594.3,2.8727]
[1724212139381,0.03916728,2594.8,2594.3,0.55]
[1724212142016,2.3973,2594.7,2594.3,0.55]
[1724212142429,2.3973,2594.9,2594.3,2.5448]
[1724212142593,0.03916728,2594.6,2594.4,0.55]
[1724212142787,2.3973,2594.9,2594.5,1.671]
[1724212142991,2.3973,2595.5,2594.7,3.9937]
[1724212143224,2.3973,2595.5,2594.8,0.45437]
[1724212143425,2.3973,2595.5,2594.9,0.55]
[1724212143637,4.0683,2595.5,2594.9,0.55]
[1724212143939,2.3973,2595.4,2594.9,0.55]
[1724212144090,0.40324551,2595.7,2594.9,0.55]
[1724212144091,2.63703,2595.3,2594.9,0.55]
[1724212144286,4.0683,2595.3,2594.9,0.55]
[1724212146026,1.671,2595.1,2594.9,0.55]
[1724212147034,1.671,2595.1,2594.2,6.9859]
[1724212147202,1.671,2594.9,2594.1,7.30749346]
[1724212147408,1.671,2594.9,2594.0,3.9859]
[1724212147605,1.671,2594.9,2594.2,1.671]
[1724212148397,1.671,2594.9,2594.3,0.55]
[1724212148804,2.4416,2595.0,2594.3,1.0721]
[1724212151699,2.4416,2595.0,2594.4,3.9438]
[1724212151901,2.4416,2595.0,2594.5,0.55]
[1724212153672,2.4985,2595.3,2594.8,1.671]
[1724212153822,2.4985,2595.3,2594.9,0.55]
[1724212154268,2.4985,2595.6,2595.0,1.671]
[1724212154419,2.4985,2595.6,2595.1,0.55]
[1724212154619,3.34272859,2596.5,2595.1,0.55]
[1724212154620,1.671,2596.1,2595.3,2.2728]
[1724212154931,22.80272859,2596.7,2595.4,2.221]
[1724212154932,2.4985,2596.0,2595.4,2.221]
[1724212156662,2.3593,2596.2,2595.4,2.221]
[1724212157226,0.03825937,2596.1,2595.4,2.221]
[1724212157552,0.03825937,2596.1,2595.5,0.44938]
[1724212157919,0.03825937,2596.1,2595.6,0.55]
[1724212169673,0.03825937,2596.1,2595.6,2.8194]
[1724212171129,0.03825937,2596.1,2595.6,4.4904]
[1724212171329,0.40314233,2596.3,2595.6,4.4904]
[1724212171583,0.04056895,2596.2,2595.6,4.93944]
[1724212172974,0.04056895,2596.2,2595.6,3.26844]
[1724212173186,2.394,2596.0,2595.4,2.4905]
[1724212173385,1.71158911,2595.9,2595.2,2.4306]
[1724212173541,1.671,2595.9,2595.2,2.4306]
[1724212173743,1.671,2595.9,2595.2,3.87150935]
[1724212173957,1.671,2595.9,2595.3,3.0]
[1724212174899,1.671,2595.9,2595.4,0.55]
[1724212178985,2.394,2596.0,2595.4,0.55]
[1724212179186,0.04042778,2595.9,2595.4,0.55]
[1724212179549,2.394,2596.0,2595.4,0.55]
[1724212179870,0.04042778,2595.9,2595.4,0.55]
[1724212180278,2.394,2596.0,2595.4,0.55]
[1724212180679,0.04042778,2595.9,2595.4,0.55]
[1724212181005,2.394,2596.0,2595.4,0.55]
[1724212181199,0.04042778,2595.9,2595.4,0.55]
[1724212181369,2.394,2596.0,2595.4,0.55]
[1724212181557,0.04042778,2595.9,2595.4,0.55]
[1724212181754,2.394,2596.0,2595.4,0.55]
[1724212181958,0.04042778,2595.9,2595.4,0.55]
[1724212182206,2.394,2596.0,2595.4,0.55]
[1724212182389,0.04042778,2595.9,2595.4,0.55]
[1724212182561,2.394,2596.0,2595.4,0.55]
[1724212182763,1.71142778,2595.9,2595.4,0.55]
[1724212184015,4.1359,2595.5,2594.7,9.79679346]
[1724212184312,0.04013541,2595.4,2594.7,2.4893]
[1724212184529,0.04013541,2595.4,2594.8,0.41603]
[1724212186920,0.04013541,2595.4,2594.9,0.55]
[1724212187167,0.11716689,2595.4,2594.9,0.55]
[1724212188968,2.308,2595.3,2594.9,0.55]
[1724212189453,0.03973208,2595.2,2594.9,3.250803]
[1724212189951,0.03973208,2595.1,2594.9,3.250803]
[1724212190153,3.979,2595.5,2594.9,3.250803]
[1724212190357,0.03973208,2595.4,2594.9,3.250803]
[1724212191930,0.03973208,2595.4,2595.0,0.5337833]
[1724212192134,0.03973208,2595.4,2595.1,0.55]
[1724212193571,0.03973208,2595.4,2595.0,0.55]
[1724212199890,0.03973208,2595.4,2595.0,2.8357]
[1724212200066,0.03973208,2595.4,2595.0,4.5067]
[1724212200273,0.03973208,2595.4,2595.1,0.4903303]
[1724212200491,0.4032163,2595.8,2595.3,2.3164]
[1724212200785,2.3057,2595.9,2595.3,2.3164]
[1724212200951,2.3057,2595.9,2595.4,0.55]
[1724212201545,0.03984303,2595.8,2595.4,0.55]
[1724212201891,0.03984303,2595.8,2595.5,0.28664]
[1724212202055,0.03984303,2595.8,2595.6,0.55]
[1724212202464,3.9767,2596.1,2595.6,0.55]
[1724212202677,0.03984303,2595.7,2595.6,0.55]
[1724212202977,0.03984303,2595.7,2595.5,0.55]
[1724212203145,3.9767,2596.1,2595.3,2.3164]
[1724212203146,3.9767,2596.1,2595.4,0.94874]
[1724212203336,0.0400346,2595.6,2595.4,0.94874]
[1724212203541,3.9767,2596.1,2595.4,0.94874]
[1724212203791,0.0400346,2596.0,2595.4,0.55]
[1724212216162,1.671,2595.9,2595.4,0.55]
[1724212216405,2.2542,2595.8,2595.4,0.55]
[1724212216612,2.2542,2595.8,2595.2,0.55]
[1724212216759,0.0402665,2595.7,2595.2,0.55]
[1724212217110,0.0402665,2595.7,2594.9,2.2881]
[1724212217111,2.18484463,2595.7,2594.9,2.2881]
[1724212217307,2.18484463,2595.7,2594.8,4.671]
[1724212217308,1.671,2595.5,2594.8,2.2881]
[1724212217507,1.74803148,2595.5,2594.8,2.2881]
[1724212218005,0.04018584,2595.4,2594.6,8.97849346]
[1724212218303,1.74803148,2595.5,2594.6,11.32509346]
[1724212218304,2.4493,2595.3,2594.6,11.32509346]
[1724212218507,2.4493,2595.3,2594.6,12.22354792]
[1724212218733,2.4493,2595.3,2594.6,4.0176]
[1724212220006,2.4493,2595.3,2594.7,0.55]
[1724212223399,2.4493,2595.3,2594.8,1.671]
[1724212223565,2.4493,2595.3,2594.9,0.55]
[1724212224158,2.4493,2595.3,2594.6,4.0176]
[1724212224159,2.4493,2595.3,2594.7,0.55]
[1724212224372,2.4493,2595.3,2594.7,0.95236512]
[1724212227007,2.4493,2595.3,2594.8,1.671]
[1724212227315,2.4493,2595.3,2594.9,0.55]
[1724212231467,2.4493,2595.3,2594.8,0.55]
[1724212232116,2.71613,2595.2,2594.8,0.55]
[1724212232310,2.71613,2595.2,2594.7,0.55]
[1724212232481,2.4712,2595.2,2594.7,0.55]
[1724212236334,2.4712,2595.2,2594.6,0.55]
[1724212241766,2.4712,2595.2,2594.7,1.671]
[1724212241967,2.4712,2595.2,2594.8,0.55]
[1724212243582,2.3279,2595.4,2594.9,1.671]
[1724212243798,0.03921773,2595.3,2595.0,0.2221]
[1724212243977,0.03921773,2595.3,2595.0,0.7721]
[1724212244279,2.3279,2595.7,2595.1,1.671]
[1724212244612,2.3279,2595.7,2595.2,0.79431]
[1724212245910,2.3279,2595.7,2595.3,1.671]
[1724212246112,0.40319673,2595.8,2595.4,0.55]
[1724212246613,2.492,2595.7,2595.4,0.55]
[1724212246910,2.53131858,2595.7,2595.3,0.55]
[1724212247218,2.492,2595.5,2595.1,0.55]
[1724212247594,0.03945976,2595.4,2595.1,0.55]
[1724212248206,0.03945976,2595.4,2595.1,2.221]
[1724212248577,2.492,2595.5,2595.1,2.221]
[1724212248907,0.03945976,2595.4,2595.1,2.221]
[1724212249211,0.03945976,2595.4,2595.2,0.47195]
[1724212249408,0.03945976,2595.4,2595.3,0.55]
[1724212249598,2.492,2595.5,2595.3,0.55]
[1724212250109,0.03945976,2595.4,2595.3,0.55]
[1724212250473,2.492,2595.5,2595.3,0.55]
[1724212250874,0.03945976,2595.4,2595.2,0.55]
[1724212251075,2.492,2595.5,2595.2,0.96695]
[1724212251285,0.03945976,2595.4,2595.2,0.96695]
[1724212251486,2.492,2595.5,2595.2,0.96695]
[1724212251771,0.03945976,2595.4,2595.2,0.55]
[1724212252172,0.03945976,2595.4,2595.0,0.55]
[1724212252406,2.492,2595.5,2595.0,0.55]
[1724212252819,0.03988336,2595.4,2595.0,0.55]
[1724212253117,2.3167,2595.3,2595.0,1.50284935]
[1724212254174,2.3167,2595.3,2595.0,0.55]
[1724212258816,2.3167,2595.3,2594.8,0.55]
[1724212263627,2.3631,2595.2,2594.8,0.55]
[1724212264087,2.3631,2595.2,2594.7,0.55]
[1724212265025,2.3631,2595.2,2594.7,1.4323986]
[1724212269302,2.3631,2595.2,2594.7,0.55]
[1724212270309,2.3631,2595.2,2594.8,1.671]
[1724212270508,2.3631,2595.2,2594.9,0.55]
[1724212270948,0.03935896,2595.1,2594.9,0.55]
[1724212271306,2.3631,2595.2,2594.9,0.55]
[1724212273013,2.3631,2595.2,2594.7,0.55]
[1724212273211,2.3631,2595.2,2594.7,2.01944087]
[1724212274631,2.3631,2595.2,2594.6,8.97849346]
[1724212274845,2.3631,2595.2,2594.6,1.671]
[1724212275194,2.3631,2595.2,2594.5,5.01222812]
[1724212275195,2.4573,2595.0,2594.5,3.0]
[1724212275426,2.3093,2594.6,2594.0,8.11660086]
[1724212275611,0.39803,2594.5,2594.1,1.34171432]
[1724212275810,2.3093,2594.6,2594.0,7.30749346]
[1724212276033,2.3093,2594.6,2594.1,1.34175633]
[1724212276213,2.3093,2594.6,2594.0,9.3200918]
[1724212276411,2.3093,2594.6,2594.1,1.671]
[1724212276700,2.3093,2594.6,2594.1,2.85101992]
[1724212276926,2.3093,2594.6,2594.2,0.55]
[1724212277643,2.3093,2594.6,2594.3,1.671]
[1724212277948,2.3093,2595.0,2594.4,0.55]
[1724212278317,0.03835018,2594.9,2594.4,0.55]
[1724212278534,2.3093,2594.9,2594.4,0.55]
[1724212278731,2.34765018,2594.8,2594.4,0.55]
[1724212280423,2.34765018,2594.8,2594.5,1.671]
[1724212280618,0.03835018,2594.8,2594.7,1.671]
[1724212280817,0.03835018,2594.8,2594.7,2.221]
[1724212281031,2.4402,2595.0,2594.7,2.221]
[1724212281218,2.4402,2595.0,2594.8,0.55]
[1724212281766,2.4402,2595.0,2594.6,0.55]
[1724212282249,2.4402,2595.0,2594.6,0.79431]
[1724212283753,2.4402,2595.0,2594.9,1.671]
[1724212283937,2.4402,2595.0,2594.9,2.221]
[1724212287483,2.2779,2595.2,2594.9,2.221]
[1724212287688,2.2779,2595.2,2595.1,1.671]
[1724212287887,2.2779,2595.2,2595.1,2.221]
[1724212291905,0.40314944,2595.6,2595.1,2.4431]
[1724212291906,2.4447,2595.5,2595.1,2.4431]
[1724212292085,2.4447,2595.5,2595.4,1.671]
[1724212292453,2.4447,2595.5,2595.4,0.55]
[1724212306645,2.48411945,2595.5,2595.4,0.55]
[1724212308234,2.77284634,2595.5,2595.4,0.55]
[1724212308590,2.77284634,2595.5,2595.3,0.55]
[1724212315124,2.48411945,2595.5,2595.4,1.671]
[1724212315324,0.03941945,2595.5,2595.4,2.221]
[1724212321230,0.03941945,2595.5,2594.9,2.4679]
[1724212321231,2.33021945,2595.5,2595.2,1.671]
[1724212321439,2.33021945,2595.5,2594.9,2.4679]
[1724212321440,2.60355634,2595.5,2594.8,7.30749346]
[1724212321627,2.33021945,2595.5,2595.1,1.671]
[1724212322662,2.33021945,2595.5,2595.3,1.671]
[1724212322867,2.33021945,2595.5,2595.4,0.55]
[1724212323394,0.03941945,2595.5,2595.4,0.55]
[1724212330008,0.03941945,2595.5,2595.4,3.1756]
[1724212331641,0.03941945,2595.5,2595.4,0.55]
[1724212335584,0.03941945,2595.5,2595.4,2.8866]
[1724212335884,2.2998,2596.1,2595.4,2.8866]
[1724212336082,2.2998,2596.1,2595.8,1.671]
[1724212336231,0.03958083,2596.0,2595.9,0.55]
[1724212345081,0.03958083,2596.0,2595.9,0.7721]
[1724212345464,2.82903582,2596.3,2595.9,0.7721]
[1724212345671,0.03994383,2596.0,2595.9,0.55]
[1724212345872,2.82903582,2596.3,2595.9,2.221]
[1724212346053,0.03995391,2596.0,2595.9,2.221]
[1724212346247,2.82903582,2596.3,2595.9,2.221]
[1724212346550,2.4258,2596.0,2595.9,2.221]
[1724212346747,2.46575391,2596.0,2595.9,2.221]
[1724212347048,2.46575391,2596.0,2595.9,0.55]
[1724212347249,2.46575391,2596.0,2595.8,0.55]
[1724212349601,0.03995391,2596.0,2595.8,0.55]
[1724212349788,2.4982,2596.2,2595.9,1.671]
[1724212350126,0.03995391,2596.1,2596.0,0.55]
[1724212355578,0.40323582,2596.3,2596.0,0.55]
[1724212355924,0.04041771,2596.2,2596.0,0.55]
[1724212356408,0.04041771,2596.1,2596.0,0.55]
[1724212356622,0.40323582,2596.3,2596.0,0.55]
[1724212356821,0.04041771,2596.1,2596.0,0.55]
[1724212357136,0.40323582,2596.3,2596.0,0.55]
[1724212357303,0.04041771,2596.1,2596.0,2.221]
[1724212357506,0.40323582,2596.3,2596.0,2.221]
[1724212357997,0.04041771,2596.2,2596.0,2.221]
[1724212358198,0.40323582,2596.3,2596.0,2.221]
[1724212358403,0.04041771,2596.2,2596.0,2.221]
[1724212358629,0.40323582,2596.3,2596.0,2.221]
[1724212358838,0.04041771,2596.1,2596.0,2.221]
[1724212359005,0.40323582,2596.3,2596.0,2.221]
[1724212359209,0.04041771,2596.2,2596.0,2.221]
[1724212359415,0.40323582,2596.3,2596.0,2.221]
[1724212359723,0.04041771,2596.2,2596.0,2.221]
[1724212360139,0.40323582,2596.3,2596.0,2.221]
[1724212360645,0.04041771,2596.2,2596.0,2.221]
[1724212361143,0.40323582,2596.3,2596.0,2.221]
[1724212361344,0.04041771,2596.1,2596.0,2.221]
[1724212361829,0.40323582,2596.3,2596.0,2.221]
[1724212362000,0.04041771,2596.1,2596.0,2.221]
[1724212362197,0.40323582,2596.3,2596.0,2.221]
[1724212362402,0.04041771,2596.2,2596.0,2.221]
[1724212362653,0.40323582,2596.3,2596.0,2.221]
[1724212362856,0.04041771,2596.1,2596.0,2.221]
[1724212363155,0.40323582,2596.3,2596.0,2.221]
[1724212363308,0.04041771,2596.1,2596.0,2.221]
[1724212363851,0.40323582,2596.3,2596.0,2.221]
[1724212364186,0.04041771,2596.1,2596.0,2.221]
[1724212364306,0.40323582,2596.3,2596.0,2.221]
[1724212364502,0.04041771,2596.1,2596.0,2.221]
[1724212364698,0.40323582,2596.3,2596.0,2.221]
[1724212364950,0.04041771,2596.1,2596.0,2.221]
[1724212365158,0.40323582,2596.3,2596.0,2.221]
[1724212365305,0.04041771,2596.1,2596.0,2.221]
[1724212365647,0.04056891,2596.1,2596.0,2.221]
[1724212365950,0.40323582,2596.3,2596.0,2.221]
[1724212366115,0.04056891,2596.1,2596.0,2.221]
[1724212366531,0.40323582,2596.3,2596.0,2.221]
[1724212366735,0.04083102,2596.1,2596.0,2.221]
[1724212366939,0.40323582,2596.3,2596.0,2.221]
[1724212367136,0.0408411,2596.1,2596.0,2.221]
[1724212367304,0.40323582,2596.3,2596.0,2.221]
[1724212367846,0.0408411,2596.2,2596.0,2.221]
[1724212368236,0.40323582,2596.3,2596.0,2.221]
[1724212368439,2.4968,2596.6,2596.2,1.671]
[1724212368620,2.4968,2596.6,2596.3,0.55]
[1724212370327,2.4968,2596.6,2596.4,1.671]
[1724212370661,0.40322311,2596.7,2596.5,0.55]
[1724212372639,2.4984,2596.8,2596.6,1.671]
[1724212372826,2.4984,2596.8,2596.7,0.55]
[1724212373369,2.4984,2596.8,2596.5,0.55]
[1724212373578,2.4984,2596.7,2596.5,0.55]
[1724212374867,2.4984,2596.7,2596.4,0.55]
[1724212381802,0.04126443,2596.6,2596.4,0.55]
[1724212382968,0.04126443,2596.6,2596.5,1.671]
[1724212383137,2.2538,2596.9,2596.5,2.221]
[1724212383343,0.04126443,2596.8,2596.6,0.55]
[1724212386099,0.04126443,2596.8,2596.4,0.55]
[1724212388894,0.04126443,2596.8,2596.4,0.7721]
[1724212389103,0.04126443,2596.8,2596.4,0.55]
[1724212393474,2.3584,2596.7,2596.2,0.55]
[1724212393671,0.07703148,2596.6,2596.2,0.55]
[1724212393857,2.43543148,2596.6,2596.1,0.55]
[1724212395253,2.3584,2596.6,2596.1,0.55]
[1724212395570,2.4384,2596.4,2596.1,0.55]
[1724212396154,2.4384,2596.4,2596.0,1.671]
[1724212396354,2.4384,2596.4,2595.8,8.97849346]
[1724212396355,2.51543148,2596.4,2595.8,8.97849346]
[1724212396557,0.0415869,2596.3,2595.8,8.97849346]
[1724212396786,2.4384,2596.2,2595.8,8.97849346]
[1724212397789,2.4384,2596.2,2595.9,0.55]
[1724212401624,2.4384,2596.2,2595.5,9.73359346]
[1724212401625,2.45433148,2596.1,2595.5,7.30749346]
[1724212401916,2.3773,2596.1,2595.8,1.671]
[1724212402335,0.04109305,2596.0,2595.8,1.671]
[1724212402956,0.04109305,2596.0,2595.9,0.55]
[1724212406862,0.04109305,2596.0,2595.8,0.55]
[1724212410915,2.4774,2595.9,2595.8,0.55]
[1724212411319,2.51794879,2595.9,2595.8,0.55]
[1724212421148,0.04054879,2595.9,2595.8,0.55]
[1724212421981,2.67992586,2596.1,2595.8,0.55]
[1724212422182,0.04054879,2595.9,2595.8,0.55]
[1724212422694,2.67992586,2596.1,2595.8,0.55]
[1724212422897,0.04054879,2595.9,2595.8,0.55]
[1724212423103,2.67992586,2596.1,2595.8,0.55]
[1724212423588,0.04054879,2596.0,2595.9,1.671]
[1724212423788,0.04054879,2596.0,2595.9,2.221]
[1724212423947,0.40322586,2596.1,2595.9,2.221]
[1724212424147,0.40322586,2596.1,2596.0,0.55]
[1724212424343,0.40322586,2596.1,2596.0,1.07866]
[1724212424573,7.27,2597.0,2596.0,2.8435]
[1724212424574,2.3161,2596.7,2596.0,2.8435]
[1724212424779,2.3161,2596.7,2596.3,1.671]
[1724212425023,0.04042779,2596.6,2596.4,0.55]
[1724212426530,0.04042779,2596.6,2596.5,1.671]
[1724212426741,0.04042779,2596.6,2596.5,2.221]
[1724212426877,0.40321545,2596.8,2596.5,2.221]
[1724212427077,0.04042779,2596.7,2596.6,0.55]
[1724212427291,0.40321545,2596.8,2596.6,0.55]
[1724212427818,0.04042779,2596.7,2596.6,0.55]
[1724212428118,0.40321545,2596.8,2596.6,0.55]
[1724212428352,0.04042779,2596.7,2596.6,0.55]
[1724212428684,0.40321545,2596.8,2596.6,0.55]
[1724212429111,0.04042779,2596.7,2596.6,0.55]
[1724212429517,0.40321545,2596.8,2596.6,0.55]
[1724212429827,0.04042779,2596.7,2596.6,0.55]
[1724212430180,0.40321545,2596.8,2596.6,0.55]
[1724212430402,0.04042779,2596.7,2596.6,0.55]
[1724212430681,0.40321545,2596.8,2596.6,0.55]
[1724212431018,0.04042779,2596.7,2596.6,0.55]
[1724212431452,0.40321545,2596.8,2596.6,0.55]
[1724212431596,0.04042779,2596.7,2596.6,0.55]